fUSD/lending_fUSD_20251210
["ID","MTS","AMOUNT","RATE_DAILY","PERIOD"]
[398137187,1765398174552,-1793.258,0.00040175,2]
[398137188,1765398174579,-965.0,0.00040228,2]
[398137189,1765398174608,-1000.0,0.00040236,2]
[398137190,1765398174634,-971.5479,0.00040237,2]
[398137191,1765398174663,-235.5853,0.00040237,2]
[398137192,1765398174689,-19558.36816314,0.00040237,2]
[398137193,1765398175366,-305.17,0.00035,30]
[398137194,1765398175394,-5027.96893686,0.00040237,2]
[398137195,1765398175421,-1000.0,0.00040237,2]
[398137196,1765398175449,-169.14841008,0.00040237,15]
[398137197,1765398175483,-5797.76019536,0.00040237,15]
[398137198,1765398175510,-210.53775197,0.00040238,2]
[398137199,1765398175537,-2773.88689746,0.00040238,15]
[398137200,1765398175564,-1876.6585,0.00040301,10]
[398137201,1765398175590,-704.29,0.00040313,30]
[398137202,1765398175615,-699.23,0.00040313,30]
[398137203,1765398175640,-690.35,0.00040313,30]
[398137204,1765398175668,-689.63,0.00040316,30]
[398137205,1765398175698,-978.77864732,0.00040327,4]
[398137206,1765398175724,-1733.83,0.00040327,2]
[398137207,1765398175751,-173.03364151,0.00040327,31]
[398137208,1765398175777,-1733.83,0.00040328,2]
[398137209,1765398175803,-435.89701944,0.00040328,4]
[398137210,1765398176060,-4457.99621716,0.00040328,4]
[398137211,1765398176087,-1733.83,0.00040328,2]
[398137212,1765398176112,-1733.83,0.00040328,2]
[398137213,1765398176141,-1733.83,0.00040328,2]
[398137214,1765398176170,-500.0,0.00040336,60]
[398137215,1765398176198,-500.0,0.00040336,60]
[398137216,1765398176225,-500.0,0.00040336,60]
[398137217,1765398176252,-500.0,0.00040336,60]
[398137218,1765398176279,-500.0,0.00040336,60]
[398137219,1765398176304,-500.0,0.00040336,60]
[398137220,1765398176332,-500.0,0.00040336,60]
[398137221,1765398176359,-500.0,0.00040336,30]
[398137222,1765398176392,-500.0,0.00040336,60]
[398137223,1765398176421,-500.0,0.00040336,2]
[398137224,1765398176447,-169.53152199,0.00040336,60]
[398137225,1765398176471,-500.0,0.00040336,60]
[398137226,1765398176497,-500.0,0.00040336,60]
[398137227,1765398176523,-9170.98226085,0.00040337,2]
[398137228,1765398176781,-829.00773915,0.00040337,2]
[398137229,1765398176808,-999.99,0.00040337,2]
[398137230,1765398176835,-9999.99,0.00040337,2]
[398137231,1765398176862,-4896.5,0.00040337,2]
[398137232,1765398176891,-8274.51226085,0.00040337,30]
[398137233,1765398178156,-25000.0,0.00040337,30]
[398137234,1765398178660,-25000.0,0.00040337,30]
[398137235,1765398179472,-25000.0,0.00040337,30]
[398137236,1765398180398,-25000.0,0.00040337,30]
[398137237,1765398181432,-25000.0,0.00040337,30]
[398137238,1765398182774,-25000.0,0.00040337,30]
[398137239,1765398184239,-25000.0,0.00040337,30]
[398137240,1765398185407,-25000.0,0.00040337,30]
[398137241,1765398186465,-250.0,0.00040336,30]
[398137242,1765398186497,-160.0,0.00040336,30]
[398137243,1765398186534,-250.0,0.00040336,30]
[398137244,1765398186565,-500.0,0.00040336,30]
[398137245,1765398186597,-151.0,0.00040336,30]
[398137246,1765398186629,-713.37,0.00040337,30]
[398137247,1765398186663,-22975.63,0.00040337,30]
[398137248,1765398187480,-6041.36155822,0.00040276,30]
[398137249,1765398187511,-18958.63844178,0.00040328,4]
[398137250,1765398188499,-19530.53206292,0.00040328,4]
[398137251,1765398188529,-5469.46793708,0.00040328,4]
[398137252,1765398189684,-5286.31964362,0.00040328,4]
[398137253,1765398189714,-500.0,0.00040336,30]
[398137254,1765398189742,-160.0,0.00040336,30]
[398137255,1765398189770,-250.0,0.00040336,30]
[398137256,1765398189796,-500.0,0.00040336,30]
[398137257,1765398189824,-151.0,0.00040336,30]
[398137258,1765398189856,-250.0,0.00040336,30]
[398137259,1765398189883,-500.0,0.00040336,30]
[398137260,1765398189911,-160.0,0.00040336,30]
[398137261,1765398189942,-500.0,0.00040336,30]
[398137262,1765398189970,-250.0,0.00040336,30]
[398137263,1765398190001,-151.0,0.00040336,30]
[398137264,1765398190030,-500.0,0.00040336,30]
[398137265,1765398190056,-160.0,0.00040336,30]
[398137266,1765398190084,-250.0,0.00040336,30]
[398137267,1765398190112,-224.05193114,0.00040336,30]
[398137268,1765398190139,-151.0,0.00040336,30]
[398137269,1765398190169,-500.0,0.00040336,30]
[398137270,1765398190199,-160.0,0.00040336,30]
[398137271,1765398190225,-250.0,0.00040336,30]
[398137272,1765398190252,-500.0,0.00040336,30]
[398137273,1765398190278,-160.0,0.00040336,30]
[398137274,1765398190308,-250.0,0.00040336,30]
[398137275,1765398190335,-500.0,0.00040336,30]
[398137276,1765398190361,-12736.62842524,0.00040337,30]
[398137277,1765398190866,-160.0,0.00040336,30]
[398137278,1765398190894,-250.0,0.00040336,30]
[398137279,1765398190926,-151.0,0.00040336,30]
[398137280,1765398190952,-500.0,0.00040336,30]
[398137281,1765398190979,-151.0,0.00040336,30]
[398137282,1765398191008,-151.0,0.00040336,30]
[398137283,1765398191035,-500.0,0.00040336,30]
[398137284,1765398191064,-3390.04931391,0.00040337,30]
[398137285,1765398191093,-9999.99,0.00040337,2]
[398137286,1765398191120,-250.0,0.00040337,120]
[398137287,1765398191147,-344.62695551,0.00040337,31]
[398137288,1765398191179,-500.0,0.00040337,31]
[398137289,1765398191208,-195.12439744,0.00040337,31]
[398137290,1765398191235,-500.0,0.00040337,31]
[398137291,1765398191261,-282.55643897,0.00040337,31]
[398137292,1765398191290,-320.96252605,0.00040337,120]
[398137293,1765398191317,-500.0,0.00040338,60]
[398137294,1765398191343,-500.0,0.00040338,60]
[398137295,1765398191371,-464.50619349,0.00040338,60]
[398137296,1765398191397,-500.0,0.00040338,60]
[398137297,1765398191424,-500.0,0.00040338,60]
[398137298,1765398191450,-500.0,0.00040338,60]
[398137299,1765398191476,-500.0,0.00040338,60]
[398137300,1765398191501,-500.0,0.00040338,60]
[398137301,1765398191528,-500.0,0.00040338,60]
[398137302,1765398191553,-500.0,0.00040338,60]
[398137303,1765398191578,-500.0,0.00040338,60]
[398137304,1765398191602,-500.0,0.00040338,60]
[398137305,1765398191627,-500.0,0.00040338,60]
[398137306,1765398191652,-500.0,0.00040338,60]
[398137307,1765398191682,-389.18417463,0.00040338,60]
[398137308,1765398192258,-151.0,0.00040336,30]
[398137309,1765398192283,-10000.0,0.00040336,30]
[398137310,1765398192312,-151.0,0.00040336,30]
[398137311,1765398192338,-500.0,0.00040336,30]
[398137312,1765398192364,-151.0,0.00040336,30]
[398137313,1765398192389,-151.0,0.00040336,30]
[398137314,1765398192416,-500.0,0.00040336,30]
[398137315,1765398192442,-110.81582537,0.00040338,60]
[398137316,1765398192483,-500.0,0.00040338,30]
[398137317,1765398192510,-500.0,0.00040338,30]
[398137318,1765398192538,-509.22748173,0.00040338,30]
[398137319,1765398192569,-500.0,0.00040338,60]
[398137320,1765398192598,-500.0,0.00040338,60]
[398137321,1765398192626,-500.0,0.00040338,60]
[398137322,1765398192652,-500.0,0.00040338,2]
[398137323,1765398192683,-500.0,0.00040338,2]
[398137324,1765398192710,-590.6,0.00040338,60]
[398137325,1765398192736,-577.87283872,0.00040338,60]
[398137326,1765398192764,-150.99,0.00040338,2]
[398137327,1765398192790,-2285.61,0.00040338,2]
[398137328,1765398192817,-299.99,0.00040338,120]
[398137329,1765398193002,-1541.17,0.00040338,30]
[398137330,1765398193027,-150.99,0.00040338,30]
[398137331,1765398193053,-3678.73385418,0.00040338,2]
[398137332,1765398303148,500.0,0.00017973,2]
[398137333,1765398308432,1092012.97058506,0.00018,2]
[398137338,1765398418418,142679.05000001,0.000162,5]
[398137339,1765398423886,463.26239223,0.00017873,2]
[398137340,1765398476990,122074.91509002,0.00017,2]
[398137341,1765398548131,-321.90545561,0.00018521,2]
[398137342,1765398548158,-5002.38838639,0.00023,30]
[398137345,1765398605114,500.0,0.00017973,2]
[398137357,1765398631501,-501.46238885,0.00018521,2]
[398137359,1765398631511,-250.0,0.00019447,2]
[398137360,1765398631521,-250.0,0.00020373,2]
[398137361,1765398631531,-250.0,0.00020373,2]
[398137363,1765398631541,-300.0,0.00022999,2]
[398137364,1765398631551,-1200.0,0.00022999,2]
[398137365,1765398631560,-23486.33410102,0.00023,30]
[398137366,1765398631571,-155.51105445,0.00024767,48]
[398137367,1765398631581,-420.0,0.00024967,2]
[398137368,1765398631591,-197.44197035,0.00025,7]
[398137369,1765398631601,-1680.0,0.00025082,2]
[398137370,1765398631610,-155.51105436,0.00026659,52]
[398137371,1765398631620,-587.0,0.00027103,2]
[398137372,1765398631630,-944.59821163,0.00027355,2]
[398137373,1765398631642,-1406.40178837,0.00027355,2]
[398137374,1765398631651,-155.51105436,0.0002855,57]
[398137375,1765398631661,-7053.37492992,0.000296,30]
[398137376,1765398631671,-3292.0,0.00029833,2]
[398137377,1765398631680,-155.51105436,0.00030442,61]
[398137378,1765398631689,-155.51105436,0.00032334,66]
[398137379,1765398631699,-4609.0,0.00032535,3]
[398137380,1765398631708,-155.51105436,0.00034225,70]
[398137381,1765398631717,-9735.50267491,0.00035,30]
[398137382,1765398631726,-514.49732509,0.00035,30]
[398137383,1765398631736,-1991.0,0.00035483,3]
[398137384,1765398631745,-155.51105436,0.00036117,75]
[398137385,1765398631755,-150.0,0.000362,30]
[398137386,1765398631764,-70104.14711065,0.00036888,60]
[398137387,1765398631774,-150.0,0.00038,30]
[398137388,1765398631783,-155.51105436,0.00038008,79]
[398137390,1765398631793,-23827.68743119,0.000385,30]
[398137392,1765398631803,-5000.0,0.0003851,120]
[398137394,1765398631813,-13460.186866,0.00038584,2]
[398137396,1765398631824,-500.0,0.000387,120]
[398137398,1765398631834,-500.0,0.000387,120]
[398137400,1765398631843,-500.0,0.000387,120]
[398137402,1765398631853,-500.0,0.000387,120]
[398137405,1765398631862,-480.51571295,0.00039114,2]
[398137408,1765398631872,-3202.16,0.00039292,2]
[398137411,1765398631881,-150.28,0.00039352,2]
[398137414,1765398631891,-340.11427191,0.00039866,2]
[398137417,1765398631901,-22963.96981738,0.000399,120]
[398137420,1765398631910,-155.51105436,0.000399,84]
[398137423,1765398631920,-351.77,0.00039904,2]
[398137426,1765398631930,-30104.79976605,0.0004,3]
[398137427,1765398631944,-271.037225,0.0004,3]
[398137428,1765398631956,-484.112775,0.0004,3]
[398137430,1765398631971,-4746.7170098,0.0004,3]
[398137434,1765398631998,-14393.33322315,0.0004,3]
[398137436,1765398632009,-7571.18,0.0004,120]
[398137438,1765398632018,-18269.67154328,0.0004,30]
[398137440,1765398632030,-1120.75944784,0.0004,30]
[398137443,1765398632052,-9444.7612289,0.0004,30]
[398137446,1765398632064,-8657.79329667,0.0004,30]
[398137448,1765398632074,-4033.86015146,0.0004,100]
[398137450,1765398632084,-6272.20567189,0.00040136,15]
[398137452,1765398632094,-175.97042893,0.00040136,28]
[398137454,1765398632103,-600.69,0.00040199,5]
[398137456,1765398632113,-236.44,0.00040218,2]
[398137458,1765398632122,-871.25,0.00040226,5]
[398137460,1765398632136,-236.44,0.00040226,2]
[398137462,1765398632145,-236.44,0.00040226,2]
[398137464,1765398632155,-236.44,0.00040226,2]
[398137466,1765398632164,-236.44,0.00040226,2]
[398137468,1765398632175,-151.76,0.00040228,2]
[398137470,1765398632184,-151.38,0.00040228,2]
[398137472,1765398632194,-6679.449,0.00040228,2]
[398137474,1765398632203,-241.23886885,0.00040235,31]
[398137476,1765398632214,-500.0,0.00040235,31]
[398137477,1765398632224,-397.78950728,0.00040235,31]
[398137478,1765398632233,-1000.0,0.00040235,120]
[398137479,1765398632243,-600.0,0.00040236,30]
[398137480,1765398632252,-50175.17686442,0.00040236,2]
[398137481,1765398632263,-357.7448616,0.00040236,2]
[398137482,1765398632274,-984.13374169,0.00040236,2]
[398137483,1765398632286,-395.53587766,0.00040236,2]
[398137484,1765398632296,-534.06656813,0.00040236,2]
[398137492,1765398637653,-612892.39480958,0.00040236,2]
[398137493,1765398637666,-4219.49174464,0.00040236,2]
[398137494,1765398637755,-51513.98311924,0.00040236,2]
[398137495,1765398637767,-38927.47241304,0.00040236,2]
[398137496,1765398637777,-169.14841005,0.00040236,15]
[398137497,1765398637787,-152.79,0.00040237,2]
[398137498,1765398637798,-152.11,0.00040237,2]
[398137499,1765398637807,-1000.0,0.00040237,2]
[398137500,1765398637818,-152.02,0.00040237,2]
[398137501,1765398637830,-151.23,0.00040237,2]
[398137502,1765398637840,-2646.37438534,0.00040238,2]
[398137503,1765398637851,-30794.58271466,0.00040238,2]
[398137504,1765398637862,-2500.0,0.00040238,2]
[398137505,1765398637872,-5000.0,0.00040238,120]
[398137506,1765398637882,-860.69,0.00040268,5]
[398137507,1765398637891,-889.25,0.00040268,5]
[398137508,1765398637902,-858.33,0.00040272,5]
[398137509,1765398637911,-152.99,0.00040274,2]
[398137510,1765398637922,-265.3,0.00040274,15]
[398137511,1765398637932,-1957.51966035,0.00040274,15]
[398137512,1765398637942,-6272.20567186,0.00040294,15]
[398137513,1765398637953,-3005.47686563,0.000403,30]
[398137514,1765398637963,-151.0,0.00040314,2]
[398137516,1765398637973,-151.0,0.00040314,2]
[398137518,1765398637989,-151.0,0.00040314,2]
[398137520,1765398638000,-151.0,0.00040314,2]
[398137522,1765398638010,-151.0,0.00040314,2]
[398137524,1765398638019,-151.0,0.00040314,2]
[398137526,1765398638030,-151.0,0.00040314,2]
[398137527,1765398638040,-151.0,0.00040314,2]
[398137528,1765398638051,-151.0,0.00040314,2]
[398137529,1765398638062,-151.0,0.00040314,2]
[398137530,1765398638072,-151.0,0.00040314,2]
[398137531,1765398638084,-151.0,0.00040314,2]
[398137532,1765398638094,-151.0,0.00040314,2]
[398137533,1765398638105,-151.0,0.00040314,2]
[398137534,1765398638116,-151.0,0.00040314,2]
[398137535,1765398638127,-151.0,0.00040314,2]
[398137536,1765398638140,-151.0,0.00040314,2]
[398137537,1765398638150,-151.0,0.00040314,2]
[398137538,1765398638161,-151.0,0.00040314,2]
[398137539,1765398638172,-151.0,0.00040314,2]
[398137540,1765398638183,-150.85,0.00040318,2]
[398137541,1765398638193,-150.85,0.00040318,2]
[398137542,1765398638204,-150.85,0.00040318,2]
[398137543,1765398638217,-16361.7254122,0.00040326,4]
[398137544,1765398638227,-150.85,0.00040326,2]
[398137545,1765398638237,-36813.8821774,0.00040327,4]
[398137546,1765398638247,-4090.43135305,0.00040327,4]
[398137547,1765398638258,-33938.29578926,0.00040328,4]
[398137548,1765398638271,-42907.60704898,0.00040328,4]
[398137549,1765398638283,-261.039,0.00040328,4]
[398137550,1765398638295,-7059.41785676,0.00040328,4]
[398137551,1765398638308,-71270.031721,0.00040328,4]
[398137552,1765398638318,-89765.43553569,0.00040328,4]
[398137553,1765398638345,-4159.8758311,0.00040328,4]
[398137557,1765398639932,-1.7e-07,0.00040328,4]
[398137558,1765398639949,-401.780011,0.00040328,4]
[398137559,1765398639961,-391.46321803,0.00040328,4]
[398137560,1765398639972,-567.51615411,0.00040328,4]
[398137561,1765398639984,-940.549599,0.00040328,4]
[398137562,1765398639996,-27486.97199998,0.00040328,4]
[398137563,1765398640007,-5484.46393787,0.00040328,4]
[398137564,1765398640019,-873.41328254,0.00040328,4]
[398137565,1765398640030,-45259.99999999,0.00040328,4]
[398137566,1765398640042,-489.13991133,0.00040328,4]
[398137567,1765398640054,-345.0000002,0.00040328,4]
[398137568,1765398640066,-1872.04,0.00040328,4]
[398137569,1765398640092,-791.97726764,0.00040328,4]
[398137571,1765398640104,-483.95000028,0.00040328,4]
[398137630,1765398642828,-8112.41351012,0.00040328,4]
[398137631,1765398642889,-105675.52579195,0.00040328,4]
[398137632,1765398642900,-711.64,0.00040336,30]
[398137633,1765398642911,-713.45,0.00040336,30]
[398137634,1765398642921,-689.07,0.00040336,30]
[398137635,1765398643109,-692.82,0.00040336,30]
[398137636,1765398643120,-46328.06,0.00040336,2]
[398137637,1765398643132,-9999.99,0.00040336,2]
[398137638,1765398643147,-500.0,0.00040336,60]
[398137639,1765398643158,-900.1104892,0.00040337,120]
[398137640,1765398643169,-1000.0,0.00040337,30]
[398137641,1765398643179,-200.0,0.00040337,30]
[398137642,1765398643189,-250.0,0.00040337,30]
[398137643,1765398643199,-900.0,0.00040337,30]
[398137644,1765398643211,-1000.0,0.00040337,30]
[398137645,1765398643222,-151.0,0.00040337,30]
[398137646,1765398643232,-207.4,0.00040337,30]
[398137647,1765398643242,-500.0,0.00040337,30]
[398137648,1765398643252,-250.0,0.00040337,30]
[398137649,1765398643263,-900.0,0.00040337,30]
[398137650,1765398643274,-1000.0,0.00040337,30]
[398137651,1765398643284,-215.0738,0.00040337,30]
[398137652,1765398643294,-151.0,0.00040337,30]
[398137653,1765398643305,-250.0,0.00040337,30]
[398137654,1765398643316,-900.0,0.00040337,30]
[398137655,1765398643327,-500.0,0.00040337,30]
[398137656,1765398643337,-1000.0,0.00040337,30]
[398137657,1765398643348,-355.0524,0.00040337,30]
[398137658,1765398643358,-151.0,0.00040337,30]
[398137659,1765398643369,-900.0,0.00040337,30]
[398137660,1765398643380,-500.0,0.00040337,30]
[398137661,1765398643390,-151.0,0.00040337,30]
[398137662,1765398643400,-900.0,0.00040337,30]
[398137663,1765398643411,-500.0,0.00040337,30]
[398137664,1765398643421,-151.0,0.00040337,30]
[398137665,1765398643431,-500.0,0.00040337,30]
[398137666,1765398643441,-900.0,0.00040337,30]
[398137667,1765398643451,-151.0,0.00040337,30]
[398137668,1765398643462,-500.0,0.00040337,30]
[398137669,1765398643472,-900.0,0.00040337,30]
[398137670,1765398643483,-151.0,0.00040337,30]
[398137671,1765398643494,-500.0,0.00040337,30]
[398137672,1765398643504,-151.0,0.00040337,30]
[398137673,1765398643514,-250.0,0.00040337,30]
[398137674,1765398643524,-500.0,0.00040337,30]
[398137675,1765398643534,-900.0,0.00040337,30]
[398137676,1765398643544,-151.0,0.00040337,30]
[398137677,1765398643554,-151.0,0.00040337,30]
[398137678,1765398643564,-200.0,0.00040337,30]
[398137679,1765398643577,-250.0,0.00040337,30]
[398137680,1765398643587,-500.0,0.00040337,30]
[398137682,1765398643598,-500.0,0.00040337,30]
[398137684,1765398643609,-900.0,0.00040337,30]
[398137685,1765398643619,-151.0,0.00040337,30]
[398137686,1765398643629,-250.0,0.00040337,30]
[398137687,1765398643640,-200.0,0.00040337,30]
[398137688,1765398643650,-500.0,0.00040337,30]
[398137689,1765398643661,-500.0,0.00040337,30]
[398137690,1765398643671,-900.0,0.00040337,30]
[398137691,1765398643681,-151.0,0.00040337,30]
[398137692,1765398643690,-151.0,0.00040337,30]
[398137693,1765398643700,-250.0,0.00040337,30]
[398137694,1765398643710,-200.0,0.00040337,30]
[398137695,1765398643719,-500.0,0.00040337,30]
[398137696,1765398643729,-500.0,0.00040337,30]
[398137697,1765398643739,-900.0,0.00040337,30]
[398137698,1765398643748,-151.0,0.00040337,30]
[398137699,1765398643758,-151.0,0.00040337,30]
[398137700,1765398643769,-250.0,0.00040337,30]
[398137701,1765398643778,-200.0,0.00040337,30]
[398137702,1765398643788,-500.0,0.00040337,30]
[398137703,1765398643798,-900.0,0.00040337,30]
[398137704,1765398643808,-151.0,0.00040337,30]
[398137705,1765398643819,-151.0,0.00040337,30]
[398137706,1765398643829,-200.0,0.00040337,30]
[398137707,1765398643840,-250.0,0.00040337,30]
[398137708,1765398643850,-500.0,0.00040337,30]
[398137709,1765398643860,-900.0,0.00040337,30]
[398137710,1765398643870,-151.0,0.00040337,30]
[398137711,1765398643880,-1000.0,0.00040337,30]
[398137712,1765398643890,-151.0,0.00040337,30]
[398137713,1765398643899,-165.06813051,0.00040337,30]
[398137714,1765398643910,-250.0,0.00040337,30]
[398137715,1765398643920,-500.0,0.00040337,30]
[398137716,1765398643930,-151.0,0.00040337,30]
[398137717,1765398643941,-900.0,0.00040337,30]
[398137718,1765398643950,-1000.0,0.00040337,30]
[398137719,1765398643961,-151.0,0.00040337,30]
[398137720,1765398643971,-500.0,0.00040337,30]
[398137721,1765398643981,-151.0,0.00040337,30]
[398137722,1765398643991,-900.0,0.00040337,30]
[398137723,1765398644001,-1000.0,0.00040337,30]
[398137724,1765398644011,-151.0,0.00040337,30]
[398137725,1765398644021,-151.0,0.00040337,30]
[398137726,1765398644030,-500.0,0.00040337,30]
[398137727,1765398644041,-1000.0,0.00040337,30]
[398137728,1765398644063,-500.0,0.00040337,30]
[398137729,1765398644075,-151.0,0.00040337,30]
[398137730,1765398644085,-1000.0,0.00040337,30]
[398137731,1765398644096,-151.0,0.00040337,30]
[398137732,1765398644107,-500.0,0.00040337,30]
[398137733,1765398644118,-1000.0,0.00040337,30]
[398137734,1765398644129,-414.0,0.00040337,30]
[398137735,1765398644143,-151.0,0.00040337,30]
[398137736,1765398644155,-500.0,0.00040337,30]
[398137737,1765398644165,-220.0,0.00040337,30]
[398137738,1765398644177,-1000.0,0.00040337,30]
[398137739,1765398644188,-429.318,0.00040337,30]
[398137740,1765398644199,-151.0,0.00040337,30]
[398137741,1765398644212,-500.0,0.00040337,30]
[398137742,1765398644223,-220.0,0.00040337,30]
[398137743,1765398644233,-1000.0,0.00040337,30]
[398137744,1765398644244,-445.202766,0.00040337,30]
[398137745,1765398644255,-500.0,0.00040337,30]
[398137746,1765398644265,-220.9769057,0.00040337,30]
[398137747,1765398644275,-1000.0,0.00040337,30]
[398137748,1765398644286,-461.67526834,0.00040337,30]
[398137749,1765398644296,-478.75725327,0.00040337,30]
[398137750,1765398644306,-151.0,0.00040337,30]
[398137751,1765398644316,-496.47127164,0.00040337,30]
[398137752,1765398644327,-500.0,0.00040337,30]
[398137753,1765398644337,-156.587,0.00040337,30]
[398137754,1765398644347,-514.84070869,0.00040337,30]
[398137755,1765398644358,-500.0,0.00040337,30]
[398137756,1765398644367,-162.380719,0.00040337,30]
[398137757,1765398644378,-533.88981491,0.00040337,30]
[398137758,1765398644387,-500.0,0.00040337,30]
[398137759,1765398644398,-168.3888056,0.00040337,30]
[398137760,1765398644412,-553.64373807,0.00040337,30]
[398137761,1765398644423,-500.0,0.00040337,30]
[398137762,1765398644434,-174.61919141,0.00040337,30]
[398137763,1765398644444,-595.37131296,0.00040337,30]
[398137764,1765398644456,-500.0,0.00040337,30]
[398137765,1765398644466,-181.08010149,0.00040337,30]
[398137766,1765398644477,-200.0,0.00040337,30]
[398137767,1765398644487,-187.78006525,0.00040337,30]
[398137768,1765398644497,-500.0,0.00040337,30]
[398137769,1765398644508,-200.0,0.00040337,30]
[398137770,1765398644518,-194.72792766,0.00040337,30]
[398137771,1765398644527,-500.0,0.00040337,30]
[398137772,1765398644538,-200.0,0.00040337,30]
[398137773,1765398644548,-251.50322381,0.00040337,30]
[398137774,1765398644558,-345.9964873,0.00040337,30]
[398137775,1765398644567,-200.0,0.00040337,30]
[398137776,1765398644578,-500.0,0.00040337,30]
[398137777,1765398644588,-500.0,0.00040337,30]
[398137778,1765398644598,-500.0,0.00040337,30]
[398137779,1765398644608,-500.0,0.00040337,30]
[398137780,1765398644618,-500.0,0.00040337,30]
[398137781,1765398644627,-500.0,0.00040337,30]
[398137782,1765398644638,-500.0,0.00040337,30]
[398137783,1765398644648,-520.0,0.00040337,30]
[398137784,1765398644658,-500.0,0.00040337,30]
[398137785,1765398644668,-539.24,0.00040337,30]
[398137786,1765398644678,-289.03222255,0.00040337,30]
[398137787,1765398644688,-559.19188,0.00040337,30]
[398137788,1765398644698,-579.88197956,0.00040337,30]
[398137789,1765398644709,-601.3376128,0.00040337,30]
[398137790,1765398644719,-623.58710448,0.00040337,30]
[398137791,1765398644728,-646.65982735,0.00040337,30]
[398137792,1765398644739,-151.0,0.00040337,30]
[398137793,1765398644748,-500.0,0.00040337,30]
[398137794,1765398644758,-151.0,0.00040337,30]
[398137795,1765398644772,-500.0,0.00040337,30]
[398137796,1765398644782,-500.0,0.00040337,30]
[398137797,1765398644792,-500.0,0.00040337,30]
[398137798,1765398644803,-500.0,0.00040337,30]
[398137799,1765398644814,-500.0,0.00040337,30]
[398137800,1765398644824,-500.0,0.00040337,30]
[398137801,1765398644835,-500.0,0.00040337,30]
[398137802,1765398644846,-500.0,0.00040337,30]
[398137803,1765398644856,-500.0,0.00040337,30]
[398137804,1765398644866,-500.0,0.00040337,30]
[398137805,1765398644877,-500.0,0.00040337,30]
[398137806,1765398644888,-500.0,0.00040337,30]
[398137807,1765398644898,-500.0,0.00040337,30]
[398137808,1765398644908,-500.0,0.00040337,30]
[398137809,1765398644918,-500.0,0.00040337,30]
[398137810,1765398644928,-500.0,0.00040337,30]
[398137811,1765398644940,-500.0,0.00040337,30]
[398137812,1765398644956,-500.0,0.00040337,30]
[398137813,1765398644967,-500.0,0.00040337,30]
[398137814,1765398644977,-500.0,0.00040337,30]
[398137815,1765398644987,-500.0,0.00040337,30]
[398137816,1765398644998,-500.0,0.00040337,30]
[398137817,1765398645008,-500.0,0.00040337,30]
[398137818,1765398645018,-500.0,0.00040337,30]
[398137819,1765398645029,-249.14934491,0.00040337,30]
[398137820,1765398645039,-500.0,0.00040338,60]
[398137821,1765398645048,-198.5,0.00040338,60]
[398137822,1765398645058,-500.0,0.00040338,2]
[398137823,1765398645068,-500.0,0.00040338,2]
[398137824,1765398645081,-500.0,0.00040338,2]
[398137825,1765398645092,-5053.47441467,0.00040374,4]
[398137826,1765398645102,-218.94857437,0.00040388,7]
[398137827,1765398645112,-1000.0,0.00040438,2]
[398137828,1765398645122,-725.0,0.00040448,2]
[398137829,1765398645132,-6272.20567186,0.00040452,15]
[398137830,1765398645153,-210.53775196,0.00040457,2]
[398137831,1765398645162,-299.98,0.00040507,120]